fUST/lending_fUST_20251224
["ID","MTS","AMOUNT","RATE_DAILY","PERIOD"]
[399626713,1766571032959,-500.0,0.00013273,2]
[399626714,1766571032968,-500.0,0.00013273,2]
[399626715,1766571032978,-500.0,0.00013273,2]
[399626716,1766571032988,-500.0,0.00013273,2]
[399626717,1766571032998,-500.0,0.00013273,2]
[399626718,1766571033009,-500.0,0.00013273,2]
[399626719,1766571033019,-500.0,0.00013273,2]
[399626720,1766571033029,-150.0,0.00013288,2]
[399626721,1766571033038,-500.0,0.00013288,2]
[399626722,1766571033049,-406.559466,0.00013424,2]
[399626723,1766571033059,-275.24518356,0.00013425,2]
[399626724,1766571033068,-500.0,0.00013425,2]
[399626725,1766571033079,-10000.0,0.0001354,2]
[399626726,1766571033089,-151.0,0.000136,2]
[399626727,1766571033100,-300.0,0.00013673,2]
[399626728,1766571033111,-1790.95258199,0.00013698,2]
[399626729,1766571033121,-3823.69,0.00013698,2]
[399626730,1766571033131,-3823.69,0.00013698,2]
[399626731,1766571033142,-3823.69,0.00013698,2]
[399626732,1766571033152,-3823.69,0.00013698,2]
[399626733,1766571033163,-3823.69,0.00013698,2]
[399626734,1766571033174,-3823.69,0.00013698,2]
[399626735,1766571033186,-3823.69,0.00013698,2]
[399626736,1766571033198,-3823.69,0.00013698,2]
[399626737,1766571033210,-3823.69,0.00013698,2]
[399626738,1766571033221,-3823.69,0.00013698,2]
[399626739,1766571033232,-3823.69,0.00013698,2]
[399626740,1766571033243,-3823.69,0.00013698,2]
[399626741,1766571033257,-3823.69,0.00013698,2]
[399626742,1766571033268,-3823.69,0.00013698,2]
[399626743,1766571033279,-3823.69,0.00013698,2]
[399626744,1766571033289,-3823.90234318,0.00013698,2]
[399626745,1766571033299,-506.32612922,0.00013698,2]
[399626746,1766571033309,-520.12700411,0.00013698,2]
[399626747,1766571033318,-708.13,0.00013698,2]
[399626748,1766571033329,-708.13,0.00013698,2]
[399626749,1766571033338,-708.13,0.00013698,2]
[399626750,1766571033348,-708.13,0.00013698,2]
[399626751,1766571033358,-708.13,0.00013698,2]
[399626752,1766571033368,-708.13,0.00013698,2]
[399626753,1766571033378,-708.13,0.00013698,2]
[399626754,1766571033387,-708.13,0.00013698,2]
[399626755,1766571033397,-708.13,0.00013698,2]
[399626756,1766571033407,-708.13,0.00013698,2]
[399626757,1766571033416,-708.13,0.00013698,2]
[399626758,1766571033426,-708.13,0.00013698,2]
[399626759,1766571033436,-708.13,0.00013698,2]
[399626760,1766571033445,-708.13,0.00013698,2]
[399626761,1766571033455,-708.13,0.00013698,2]
[399626762,1766571033465,-708.13,0.00013698,2]
[399626763,1766571033475,-708.13,0.00013698,2]
[399626764,1766571033485,-708.13,0.00013698,2]
[399626765,1766571033495,-708.13,0.00013698,2]
[399626766,1766571033505,-708.13,0.00013698,2]
[399626767,1766571033515,-708.13,0.00013698,2]
[399626768,1766571033524,-708.13,0.00013698,2]
[399626769,1766571033534,-708.13,0.00013698,2]
[399626770,1766571033544,-708.20615459,0.00013698,2]
[399626771,1766571033554,-1676.44,0.00013698,2]
[399626772,1766571033563,-1676.44,0.00013698,2]
[399626773,1766571033572,-1676.44,0.00013698,2]
[399626774,1766571033582,-1676.44,0.00013698,2]
[399626775,1766571033591,-1676.44,0.00013698,2]
[399626776,1766571033601,-1676.44,0.00013698,2]
[399626777,1766571033611,-1676.44,0.00013698,2]
[399626778,1766571033621,-1676.44,0.00013698,2]
[399626779,1766571033631,-1676.44,0.00013698,2]
[399626780,1766571033640,-1676.44,0.00013698,2]
[399626781,1766571033650,-1676.44,0.00013698,2]
[399626782,1766571033660,-1676.44,0.00013698,2]
[399626783,1766571033670,-1676.44,0.00013698,2]
[399626784,1766571033679,-1676.44,0.00013698,2]
[399626785,1766571033689,-1676.44,0.00013698,2]
[399626786,1766571033698,-1676.44,0.00013698,2]
[399626787,1766571033708,-1676.44,0.00013698,2]
[399626788,1766571033718,-1676.44,0.00013698,2]
[399626789,1766571033727,-1676.44,0.00013698,2]
[399626791,1766571034053,-1676.44,0.00013698,2]
[399626792,1766571034064,-1676.44,0.00013698,2]
[399626793,1766571034074,-1676.44,0.00013698,2]
[399626794,1766571034085,-1676.44,0.00013698,2]
[399626795,1766571034095,-1676.47170527,0.00013698,2]
[399626796,1766571034106,-500.0,0.00013698,2]
[399626797,1766571034116,-500.0,0.00013698,2]
[399626798,1766571034126,-500.0,0.00013698,2]
[399626799,1766571034135,-500.0,0.00013698,2]
[399626800,1766571034145,-500.0,0.00013698,2]
[399626801,1766571034156,-500.0,0.00013698,2]
[399626802,1766571034167,-500.0,0.00013698,2]
[399626803,1766571034177,-500.0,0.00013698,2]
[399626804,1766571034187,-500.0,0.00013698,2]
[399626805,1766571034197,-500.0,0.00013698,2]
[399626806,1766571034207,-500.0,0.00013698,2]
[399626807,1766571034216,-500.0,0.00013698,2]
[399626808,1766571034226,-500.0,0.00013698,2]
[399626809,1766571034236,-500.0,0.00013698,2]
[399626810,1766571034246,-500.0,0.00013698,2]
[399626811,1766571034256,-500.0,0.00013698,2]
[399626812,1766571034266,-500.0,0.00013698,2]
[399626813,1766571034278,-500.0,0.00013698,2]
[399626814,1766571034288,-278.95094355,0.00013698,2]
[399626815,1766571034297,-500.0,0.00013698,2]
[399626816,1766571034307,-500.0,0.00013698,2]
[399626817,1766571034316,-504.67406641,0.00013698,2]
[399626818,1766571034326,-500.0,0.00013698,2]
[399626819,1766571034335,-500.0,0.00013698,2]
[399626820,1766571034345,-500.0,0.00013698,2]
[399626821,1766571034355,-500.0,0.00013698,2]
[399626822,1766571034364,-500.0,0.00013698,2]
[399626823,1766571034374,-500.0,0.00013698,2]
[399626824,1766571034383,-500.0,0.00013698,2]
[399626825,1766571034393,-500.0,0.00013698,2]
[399626826,1766571034402,-500.0,0.00013698,2]
[399626827,1766571034411,-500.0,0.00013698,2]
[399626828,1766571034421,-500.0,0.00013698,2]
[399626829,1766571034430,-561.22310202,0.00013698,2]
[399626830,1766571034439,-500.0,0.00013698,2]
[399626831,1766571034449,-500.0,0.00013698,2]
[399626832,1766571034459,-500.0,0.00013698,2]
[399626833,1766571034468,-500.0,0.00013698,2]
[399626834,1766571034478,-500.0,0.00013698,2]
[399626835,1766571034488,-500.0,0.00013698,2]
[399626836,1766571034498,-500.0,0.00013698,2]
[399626837,1766571034507,-500.0,0.00013698,2]
[399626838,1766571034519,-500.0,0.00013698,2]
[399626839,1766571034528,-646.1117854,0.00013698,2]
[399626840,1766571034538,-500.0,0.00013698,2]
[399626841,1766571034547,-505.87752958,0.00013698,2]
[399626842,1766571034557,-235.60989908,0.00013698,2]
[399626843,1766571034567,-551.61046929,0.00013698,2]
[399626844,1766571034576,-500.0,0.00013698,2]
[399626845,1766571034586,-508.22905639,0.00013698,2]
[399626846,1766571034595,-500.0,0.00013698,2]
[399626847,1766571034604,-500.0,0.00013698,2]
[399626848,1766571034614,-502.90653781,0.00013698,2]
[399626849,1766571034624,-500.0,0.00013698,2]
[399626850,1766571034634,-500.0,0.00013698,2]
[399626851,1766571034643,-500.0,0.00013698,2]
[399626852,1766571034653,-500.0,0.00013698,2]
[399626853,1766571034662,-500.0,0.00013698,2]
[399626854,1766571034671,-500.0,0.00013698,2]
[399626855,1766571034681,-500.0,0.00013698,2]
[399626856,1766571034690,-500.0,0.00013698,2]
[399626857,1766571034700,-500.0,0.00013698,2]
[399626858,1766571034709,-500.0,0.00013698,2]
[399626859,1766571034718,-500.0,0.00013698,2]
[399626860,1766571034728,-500.0,0.00013698,2]
[399626861,1766571034737,-500.0,0.00013698,2]
[399626862,1766571034747,-500.0,0.00013698,2]
[399626863,1766571034757,-500.0,0.00013698,2]
[399626864,1766571034767,-500.0,0.00013698,2]
[399626865,1766571034777,-244.91702404,0.00013698,2]
[399626866,1766571034786,-500.0,0.00013698,2]
[399626867,1766571034796,-500.0,0.00013698,2]
[399626868,1766571034808,-500.0,0.00013698,2]
[399626869,1766571034817,-500.0,0.00013698,2]
[399626870,1766571034826,-500.0,0.00013698,2]
[399626871,1766571034836,-500.0,0.00013698,2]
[399626872,1766571034846,-500.0,0.00013698,2]
[399626873,1766571034855,-500.0,0.00013698,2]
[399626874,1766571034864,-500.0,0.00013698,2]
[399626875,1766571034874,-500.0,0.00013698,2]
[399626876,1766571034883,-500.0,0.00013698,2]
[399626877,1766571034893,-500.0,0.00013698,2]
[399626878,1766571034902,-500.0,0.00013698,2]
[399626879,1766571034912,-500.0,0.00013698,2]
[399626880,1766571034922,-500.0,0.00013698,2]
[399626881,1766571034931,-500.0,0.00013698,2]
[399626882,1766571034940,-500.0,0.00013698,2]
[399626883,1766571034949,-474.26302971,0.00013698,2]
[399626884,1766571034959,-500.0,0.00013698,2]
[399626885,1766571034969,-500.0,0.00013698,2]
[399626886,1766571034978,-500.0,0.00013698,2]
[399626887,1766571034988,-500.0,0.00013698,2]
[399626888,1766571034998,-354.92112379,0.00013698,2]
[399626889,1766571035007,-4264.58,0.00013698,2]
[399626890,1766571035016,-4264.58,0.00013698,2]
[399626891,1766571035026,-4264.58,0.00013698,2]
[399626892,1766571035036,-4264.58,0.00013698,2]
[399626893,1766571035046,-4264.58,0.00013698,2]
[399626894,1766571035055,-4264.58,0.00013698,2]
[399626895,1766571035065,-4264.58,0.00013698,2]
[399626896,1766571035075,-4264.58,0.00013698,2]
[399626897,1766571035085,-4264.58,0.00013698,2]
[399626898,1766571035095,-4264.58,0.00013698,2]
[399626899,1766571035105,-4264.58,0.00013698,2]
[399626900,1766571035114,-4264.58,0.00013698,2]
[399626901,1766571035124,-4264.58,0.00013698,2]
[399626902,1766571035134,-4264.58,0.00013698,2]
[399626903,1766571035144,-4264.58,0.00013698,2]
[399626904,1766571035153,-4264.58,0.00013698,2]
[399626905,1766571035164,-4264.58,0.00013698,2]
[399626906,1766571035174,-4264.58,0.00013698,2]
[399626907,1766571035184,-4264.58,0.00013698,2]
[399626908,1766571035194,-1193.85541542,0.00013698,2]
[399626909,1766571035212,-1667.7762393,0.00013698,2]
[399626933,1766571038200,-482.24165179,0.00012679,2]
[399626935,1766571038213,-17.75834821,0.00012679,2]
[399626937,1766571038224,-1730.53652742,0.00012679,2]
[399626941,1766571038254,-988.22061036,0.00012679,2]
[399626943,1766571038265,-572.92786859,0.00012679,2]
[399626945,1766571038276,-1229.10318635,0.00012679,2]
[399626947,1766571038290,-1489.65395143,0.00012679,2]
[399626949,1766571038300,-2718.75713778,0.00012679,2]
[399626951,1766571038311,-500.0,0.00012679,2]
[399626953,1766571038321,-1037.32970273,0.00012679,2]
[399626956,1766571038334,-1681.42743505,0.00012679,2]
[399626958,1766571038345,-874.30023365,0.00012679,2]
[399626960,1766571038357,-1844.45690413,0.00012679,2]
[399626962,1766571038367,-2718.75713778,0.00012679,2]
[399626964,1766571038378,-2718.75713778,0.00012679,2]
[399626967,1766571038390,-2718.75713778,0.00012679,2]
[399626969,1766571038401,-153.3428979,0.00012679,2]
[399626971,1766571038412,-2718.75713778,0.00012679,2]
[399626973,1766571038423,-2718.75713778,0.00012679,2]
[399626975,1766571038434,-2718.75713778,0.00012679,2]
[399626977,1766571038445,-2718.75713778,0.00012679,2]
[399626979,1766571038455,-2718.75713778,0.00012679,2]
[399626982,1766571038466,-2718.75713778,0.00012679,2]
[399626983,1766571038477,-2718.75713778,0.00012679,2]
[399626985,1766571038488,-2718.75713778,0.00012679,2]
[399626986,1766571038498,-2718.75713778,0.00012679,2]
[399626988,1766571038508,-2718.75713778,0.00012679,2]
[399626990,1766571038519,-2718.75713778,0.00012679,2]
[399626992,1766571038530,-2718.75713778,0.00012679,2]
[399626994,1766571038540,-2718.75713778,0.00012679,2]
[399626996,1766571038551,-2718.75713778,0.00012679,2]
[399626998,1766571038562,-2718.75713778,0.00012679,2]
[399627000,1766571038572,-2718.75713778,0.00012679,2]
[399627002,1766571038583,-2718.75713778,0.00012679,2]
[399627004,1766571038594,-2718.75713778,0.00012679,2]
[399627006,1766571038604,-500.0,0.00013273,2]
[399627008,1766571038615,-438.66041496,0.00013698,2]
[399627011,1766571038632,-964.28793032,0.00013698,2]
[399627013,1766571038642,-1149.92614171,0.00013698,2]
[399627015,1766571038656,-2741.79265226,0.00013698,2]
[399627017,1766571038670,-372.86120603,0.00013698,2]
[399627019,1766571038680,-42.78296646,0.00013698,2]
[399627190,1766571040445,-717.828,0.00013698,2]
[399627194,1766571040471,-500.0,0.00013698,2]
[399627196,1766571040483,-727.71476658,0.00013698,2]
[399627398,1766571043726,-618.52049658,0.00012278,2]
[399627399,1766571043736,-2276.25426696,0.00013698,2]
[399627400,1766571043746,-4264.58,0.00013698,2]
[399627401,1766571043756,-4264.75038916,0.00013698,2]
[399627402,1766571043765,-729.44,0.00013698,2]
[399627403,1766571043775,-729.44,0.00013698,2]
[399627404,1766571043785,-729.44,0.00013698,2]
[399627406,1766571043797,-729.44,0.00013698,2]
[399627407,1766571043808,-729.44,0.00013698,2]
[399627409,1766571043817,-729.44,0.00013698,2]
[399627410,1766571043826,-729.44,0.00013698,2]
[399627412,1766571043837,-729.44,0.00013698,2]
[399627413,1766571043846,-729.44,0.00013698,2]
[399627415,1766571043855,-729.44,0.00013698,2]
[399627416,1766571043865,-729.44,0.00013698,2]
[399627418,1766571043877,-729.44,0.00013698,2]
[399627419,1766571043886,-729.44,0.00013698,2]
[399627421,1766571043896,-729.44,0.00013698,2]
[399627423,1766571043905,-729.44,0.00013698,2]
[399627424,1766571043915,-729.44,0.00013698,2]
[399627426,1766571043924,-729.44,0.00013698,2]
[399627428,1766571043933,-729.44,0.00013698,2]
[399627430,1766571043943,-729.44,0.00013698,2]
[399627431,1766571043952,-729.44,0.00013698,2]
[399627432,1766571043962,-729.44,0.00013698,2]
[399627433,1766571043971,-729.44,0.00013698,2]
[399627434,1766571043981,-729.44,0.00013698,2]
[399627435,1766571043990,-729.61538339,0.00013698,2]
[399627436,1766571043999,-500.0,0.00013698,2]
[399627437,1766571044008,-500.0,0.00013698,2]
[399627438,1766571044018,-500.0,0.00013698,2]
[399627439,1766571044027,-500.0,0.00013698,2]
[399627440,1766571044037,-619.66017172,0.00013698,2]
[399627441,1766571044047,-500.0,0.00013698,2]
[399627442,1766571044056,-500.0,0.00013698,2]
[399627443,1766571044068,-500.0,0.00013698,2]
[399627444,1766571044078,-500.0,0.00013698,2]
[399627445,1766571044088,-500.0,0.00013698,2]
[399627446,1766571044098,-500.0,0.00013698,2]
[399627447,1766571044108,-500.0,0.00013698,2]
[399627448,1766571044118,-500.0,0.00013698,2]
[399627449,1766571044128,-500.0,0.00013698,2]
[399627450,1766571044137,-500.0,0.00013698,2]
[399627451,1766571044148,-500.0,0.00013698,2]
[399627452,1766571044158,-500.0,0.00013698,2]
[399627453,1766571044168,-500.0,0.00013698,2]
[399627454,1766571044178,-500.0,0.00013698,2]
[399627455,1766571044188,-500.0,0.00013698,2]
[399627456,1766571044198,-500.0,0.00013698,2]
[399627458,1766571044208,-500.0,0.00013698,2]
[399627459,1766571044219,-500.0,0.00013698,2]
[399627461,1766571044229,-500.0,0.00013698,2]
[399627462,1766571044239,-500.0,0.00013698,2]
[399627464,1766571044250,-500.0,0.00013698,2]
[399627466,1766571044260,-500.0,0.00013698,2]
[399627467,1766571044270,-497.56,0.00013698,2]
[399627469,1766571044279,-500.0,0.00013698,2]
[399627471,1766571044289,-500.0,0.00013698,2]
[399627473,1766571044299,-500.0,0.00013698,2]
[399627474,1766571044309,-500.0,0.00013698,2]
[399627475,1766571044319,-500.0,0.00013698,2]
[399627477,1766571044329,-500.0,0.00013698,2]
[399627479,1766571044338,-500.0,0.00013698,2]
[399627481,1766571044348,-500.0,0.00013698,2]
[399627483,1766571044357,-500.0,0.00013698,2]
[399627484,1766571044367,-500.0,0.00013698,2]
[399627486,1766571044376,-500.0,0.00013698,2]
[399627488,1766571044387,-500.0,0.00013698,2]
[399627489,1766571044396,-500.0,0.00013698,2]
[399627491,1766571044407,-521.83737702,0.00013698,2]
[399627492,1766571044416,-217.50843918,0.00013698,2]
[399627493,1766571044426,-500.0,0.00013698,2]
[399627494,1766571044436,-500.0,0.00013698,2]
[399627496,1766571044445,-500.0,0.00013698,2]
[399627497,1766571044455,-500.0,0.00013698,2]
[399627498,1766571044465,-500.0,0.00013698,2]
[399627499,1766571044474,-500.0,0.00013698,2]
[399627500,1766571044484,-500.0,0.00013698,2]
[399627501,1766571044493,-500.0,0.00013698,2]
[399627502,1766571044502,-500.0,0.00013698,2]
[399627503,1766571044512,-500.0,0.00013698,2]
[399627504,1766571044522,-500.0,0.00013698,2]
[399627505,1766571044531,-532.38933342,0.00013698,2]
[399627506,1766571044540,-500.0,0.00013698,2]
[399627507,1766571044551,-500.0,0.00013698,2]
[399627508,1766571044561,-500.0,0.00013698,2]
[399627509,1766571044570,-500.0,0.00013698,2]
[399627510,1766571044579,-500.0,0.00013698,2]
[399627511,1766571044589,-500.0,0.00013698,2]
[399627512,1766571044598,-500.0,0.00013698,2]
[399627513,1766571044608,-500.0,0.00013698,2]
[399627514,1766571044617,-500.0,0.00013698,2]
[399627515,1766571044626,-500.0,0.00013698,2]
[399627516,1766571044636,-624.6403768,0.00013698,2]
[399627517,1766571044645,-500.0,0.00013698,2]
[399627518,1766571044656,-500.0,0.00013698,2]
[399627519,1766571044666,-500.0,0.00013698,2]
[399627520,1766571044675,-386.36882751,0.00013698,2]
[399627521,1766571044690,-113.63117249,0.00013698,2]
[399627522,1766571044700,-504.09583706,0.00013698,2]
[399627523,1766571044710,-506.39480319,0.00013698,2]
[399627524,1766571044719,-500.0,0.00013698,2]
[399627526,1766571044729,-500.0,0.00013698,2]
[399627527,1766571044738,-500.0,0.00013698,2]
[399627528,1766571044747,-500.0,0.00013698,2]
[399627529,1766571044757,-500.0,0.00013698,2]
[399627530,1766571044766,-500.0,0.00013698,2]
[399627531,1766571044775,-296.17983103,0.00013698,2]
[399627532,1766571044785,-506.80255226,0.00013698,2]
[399627533,1766571044794,-573.40156593,0.00013698,2]
[399627534,1766571044807,-503.62745038,0.00013698,2]
[399627535,1766571044815,-500.0,0.00013698,2]
[399627536,1766571044825,-500.0,0.00013698,2]
[399627537,1766571044834,-500.0,0.00013698,2]
[399627538,1766571044843,-3.91536943,0.00013698,2]
[399627539,1766571044855,-512.37385712,0.00013698,2]
[399627540,1766571044865,-30.03614288,0.00013698,2]
[399627544,1766571046349,-469.96385712,0.00013698,2]
[399627545,1766571046360,-500.0,0.00013698,2]
[399627546,1766571046369,-500.0,0.00013698,2]
[399627547,1766571046379,-260.27507492,0.00013698,2]
[399627548,1766571046388,-500.0,0.00013698,2]
[399627549,1766571046399,-500.0,0.00013698,2]
[399627550,1766571046408,-500.0,0.00013698,2]
[399627551,1766571046417,-500.0,0.00013698,2]
[399627552,1766571046426,-2688.1,0.00013698,2]
[399627553,1766571046436,-2688.1,0.00013698,2]
[399627554,1766571046447,-2688.1,0.00013698,2]
[399627555,1766571046456,-2688.1,0.00013698,2]
[399627556,1766571046466,-2688.1,0.00013698,2]
[399627557,1766571046475,-2688.1,0.00013698,2]
[399627558,1766571046484,-768.48372837,0.00013698,2]
[399627559,1766571046496,-1438.72,0.00013698,2]
[399627560,1766571046508,-480.89627163,0.00013698,2]
[399627561,1766571046517,-1725.29471114,0.00013698,2]
[399627562,1766571046529,-962.80528886,0.00013698,2]
[399627563,1766571046538,-1515.1112115,0.00013698,2]
[399627564,1766571046549,-1172.9887885,0.00013698,2]
[399627565,1766571046559,-2688.1,0.00013698,2]
[399627566,1766571046569,-2688.1,0.00013698,2]
[399627567,1766571046579,-2688.1,0.00013698,2]
[399627568,1766571046588,-2688.1,0.00013698,2]
[399627569,1766571046598,-2688.1,0.00013698,2]
[399627570,1766571046607,-2688.1,0.00013698,2]
[399627571,1766571046617,-2688.1,0.00013698,2]
[399627572,1766571046627,-2688.1,0.00013698,2]
[399627573,1766571046636,-2688.1,0.00013698,2]
[399627574,1766571046646,-2688.1,0.00013698,2]
[399627575,1766571046657,-2688.1,0.00013698,2]
[399627576,1766571046667,-2688.1,0.00013698,2]
[399627577,1766571046676,-2688.1,0.00013698,2]
[399627578,1766571046687,-2688.1,0.00013698,2]
[399627579,1766571046696,-2130.78512825,0.00013698,2]
[399627580,1766571046717,-452.60481759,0.00013698,2]
[399627818,1766571421939,2000.0,0.00032877,120]
[399627920,1766571549747,687.88993539,0.00032,120]
[399627941,1766571596244,2500.0,0.00032877,120]
[399627942,1766571607362,177.0,0.00031745,120]
[399627944,1766571637404,165.0,0.00030044,120]
[399627945,1766571639208,165.0,0.00031546,120]
[399627961,1766571709748,2500.0,0.00032877,120]
[399627966,1766571738349,2500.0,0.00032877,120]
[399627967,1766571752088,2500.0,0.00032877,120]
[399628023,1766571930641,165.0,0.00030077,120]
[399628024,1766571931939,165.0,0.00031581,120]
[399628081,1766572122937,330.227398,0.00032876,120]
[399628126,1766572238341,-516.0,6.764e-05,2]
[399628127,1766572238353,-183.36944054,6.959e-05,2]
[399628128,1766572238363,-150.0,7.277e-05,2]
[399628129,1766572238374,-150.0,7.624e-05,2]
[399628130,1766572238384,-150.0,7.97e-05,2]
[399628131,1766572238394,-191.96,8.317e-05,2]
[399628132,1766572238404,-239.95,8.663e-05,2]
[399628133,1766572238415,-216.37593984,8.959e-05,2]
[399628134,1766572238426,-287.94,9.01e-05,2]
[399628135,1766572238436,-1041.66666667,9.238e-05,2]
[399628136,1766572238447,-335.93,9.356e-05,2]
[399628138,1766572238457,-383.92,9.703e-05,2]
[399628139,1766572238468,-300.0,9.999e-05,2]
[399628140,1766572238481,-288.69016287,0.0001,2]
[399628141,1766572238491,-1000.0,0.0001,2]
[399628143,1766572238505,-3145.2282298,0.0001,2]
[399628145,1766572238523,-1069.39056157,0.0001,2]
[399628146,1766572238535,-398.40358852,0.0001,2]
[399628147,1766572238547,-559.59362836,0.0001,2]
[399628284,1766572240511,-1822.9118107,0.0001,2]
[399628285,1766572240521,-431.91,0.00010049,2]
[399628286,1766572240531,-479.91,0.00010396,2]
[399628287,1766572240541,-249.38243914,0.00010959,2]
[399628288,1766572240551,-416.0,0.00011092,2]
[399628289,1766572240561,-500.0,0.00012054,2]
[399628290,1766572240573,-375.8695034,0.0001222,2]
[399628291,1766572240583,-375.8695034,0.0001222,2]
[399628292,1766572240602,-749.3425477,0.0001222,2]
[399628293,1766572240623,-375.8695034,0.0001222,2]
[399628295,1766572240633,-375.8695034,0.00012341,2]
[399628297,1766572240643,-282.38893843,0.00012959,2]
[399628299,1766572240653,-376.9164745,0.00013179,2]
[399628301,1766572240663,-500.0,0.00013273,2]
[399628303,1766572240673,-500.0,0.00013273,2]
[399628305,1766572240682,-500.0,0.00013273,2]
[399628307,1766572240692,-500.0,0.00013273,2]
[399628309,1766572240702,-500.0,0.00013273,2]
[399628311,1766572240711,-500.0,0.00013273,2]
[399628313,1766572240721,-500.0,0.00013273,2]
[399628315,1766572240731,-500.0,0.00013273,2]
[399628317,1766572240740,-500.0,0.00013273,2]
[399628319,1766572240750,-251.43434518,0.00013273,2]
[399628619,1766572243748,-248.56565482,0.00013273,2]
[399628621,1766572243758,-42.30609072,0.00013273,2]
[399628624,1766572243784,-457.69390928,0.00013273,2]
[399628626,1766572243794,-500.0,0.00013273,2]
[399628628,1766572243803,-42.30609072,0.00013273,2]
[399628631,1766572243816,-457.69390928,0.00013273,2]
[399628633,1766572243827,-500.0,0.00013273,2]
[399628635,1766572243837,-500.0,0.00013273,2]
[399628637,1766572243847,-500.0,0.00013273,2]
[399628639,1766572243857,-343.13231072,0.00013273,2]
[399628896,1766572246874,-156.86768928,0.00013273,2]
[399628898,1766572246884,-500.0,0.00013273,2]
[399628899,1766572246894,-500.0,0.00013273,2]
[399628900,1766572246904,-500.0,0.00013273,2]
[399628902,1766572246914,-500.0,0.00013273,2]
[399628903,1766572246923,-500.0,0.00013273,2]
[399628904,1766572246932,-190.64386885,0.00013273,2]
[399628906,1766572246944,-309.35613115,0.00013273,2]
[399628907,1766572246953,-500.0,0.00013273,2]
[399628908,1766572246963,-500.0,0.00013273,2]
[399628909,1766572246973,-193.59386885,0.00013273,2]
[399628938,1766572462871,408.640709,0.00030137,120]
[399628992,1766572989460,5000.0,0.00032877,120]
[399628993,1766573002569,2500.0,0.00032877,120]
[399628994,1766573018882,2500.0,0.00032877,120]
[399628995,1766573047027,2500.0,0.00032877,120]
[399628996,1766573082200,2500.0,0.00032877,120]
[399628997,1766573096210,2500.0,0.00032877,120]
[399628998,1766573108614,2500.0,0.00032877,120]
[399628999,1766573142431,4004.0,0.00032877,120]
[399629062,1766573432428,-252.29399878,6.641e-05,2]
[399629064,1766573432440,-261.70600122,6.641e-05,2]
[399629065,1766573432451,-59.29399878,6.939e-05,2]
[399629122,1766573438624,-169.85180795,6.79e-05,2]
[399629124,1766573438636,-150.0,7.273e-05,2]
[399629125,1766573438646,-150.0,7.619e-05,2]
[399629127,1766573438656,-150.0,7.965e-05,2]
[399629129,1766573438667,-150.0,8.312e-05,2]
[399629131,1766573438678,-150.0,8.658e-05,2]
[399629134,1766573438688,-200.42513338,8.79e-05,2]
[399629135,1766573438699,-166.77,9.004e-05,2]
[399629137,1766573438709,-194.56,9.351e-05,2]
[399629139,1766573438719,-401.70211563,9.367e-05,2]
[399629141,1766573438728,-222.36,9.697e-05,2]
[399629143,1766573438738,-250.15,0.00010043,2]
[399629145,1766573438748,-300.0,0.00010262,2]
[399629147,1766573438759,-1200.0,0.00010262,2]
[399629149,1766573438769,-1200.0,0.00010263,2]
[399629151,1766573438778,-300.0,0.00010263,2]
[399629153,1766573438788,-300.0,0.00010263,2]
[399629155,1766573438798,-500.0,0.00010264,2]